bitfinex/quotes_ETHUSD_20241129
["timestamp","ask_amount","ask_price","bid_price","bid_amount"]
[1732904068983,0.02602771,3595.6,3595.5,3.85028028]
[1732904069313,0.02602771,3595.6,3595.5,4.79247348]
[1732904071120,0.02602771,3595.6,3595.5,4.76467142]
[1732904072485,0.02602771,3595.6,3595.5,0.25742822]
[1732904072827,0.02602771,3595.6,3594.4,2.78203]
[1732904072828,3.37465771,3595.6,3594.8,0.7719]
[1732904072988,2.78128,3595.5,3594.9,0.2560375]
[1732904073323,2.78128,3595.5,3595.0,0.2560375]
[1732904073538,2.78128,3595.5,3594.8,0.7719]
[1732904073829,2.78128,3595.5,3594.9,0.25603261]
[1732904074028,2.78128,3595.5,3595.0,0.25603261]
[1732904074331,2.78128,3595.5,3594.9,2.78171]
[1732904074541,2.78128,3595.5,3595.0,0.25601941]
[1732904074849,2.78128,3595.5,3594.9,2.78169]
[1732904075026,2.78128,3595.5,3594.9,3.46455971]
[1732904075244,0.59342771,3595.6,3595.0,3.03764069]
[1732904075538,0.59342771,3595.6,3594.9,0.68286971]
[1732904075539,0.02602771,3595.6,3595.4,2.78131]
[1732904076133,0.02602771,3595.6,3595.2,2.78143]
[1732904076432,0.02602771,3595.6,3595.3,0.25591218]
[1732904076433,0.5674,3595.5,3595.3,0.25591218]
[1732904076629,2.78146,3595.3,3594.6,2.78193]
[1732904076807,2.78159,3595.1,3594.7,0.25600152]
[1732904077001,2.78159,3595.1,3594.8,0.25600152]
[1732904077221,2.78159,3595.1,3594.9,0.25600152]
[1732904077397,2.78159,3595.1,3594.4,3.54819]
[1732904077591,0.5674,3595.5,3594.5,0.25608812]
[1732904077592,2.78165,3595.0,3594.5,0.25608812]
[1732904077788,0.5674,3595.5,3594.6,0.25608812]
[1732904077789,2.78161,3595.1,3594.6,0.25608812]
[1732904078031,0.5674,3594.9,3594.2,2.78219]
[1732904078235,0.5674,3594.9,3594.3,0.25615198]
[1732904078435,3.34915,3594.9,3594.3,0.25615198]
[1732904078740,3.34915,3594.9,3594.4,0.25615198]
[1732904079044,3.34915,3594.9,3594.1,2.78233]
[1732904079218,2.78188,3594.7,3594.2,0.2562197]
[1732904079422,2.78188,3594.7,3594.3,0.2562197]
[1732904079605,2.78188,3594.7,3594.4,0.2562197]
[1732904079934,2.78188,3594.7,3594.5,0.25619856]
[1732904080120,2.78188,3594.7,3594.1,2.78233]
[1732904080418,2.78188,3594.7,3594.2,0.25631806]
[1732904080761,2.78188,3594.7,3594.1,2.78233]
[1732904080762,2.78188,3594.7,3594.3,0.25631806]
[1732904080909,2.78188,3594.7,3594.4,0.25631806]
[1732904081101,2.78188,3594.7,3594.5,0.25631806]
[1732904081333,2.78188,3594.7,3594.6,0.25631806]
[1732904083156,3.34915,3594.9,3594.6,0.25631806]
[1732904083455,3.34915,3594.9,3594.7,0.25631806]
[1732904083628,2.78179,3594.8,3594.1,2.78226]
[1732904083817,2.78188,3594.7,3594.2,0.25661743]
[1732904084014,2.78188,3594.7,3594.3,0.25661743]
[1732904084326,2.78188,3594.7,3594.4,0.25661743]
[1732904084527,2.78188,3594.7,3594.5,0.25661743]
[1732904084755,2.78188,3594.7,3594.6,0.25661743]
[1732904089171,3.96238,3594.7,3594.6,0.25661743]
[1732904089384,6.96238,3594.7,3594.6,0.25661743]
[1732904089543,2.78252,3593.9,3593.4,0.7782]
[1732904089747,2.78252,3593.9,3593.5,0.25806935]
[1732904089985,2.78264,3593.8,3593.6,0.25806935]
[1732904090142,2.78256,3593.8,3593.7,0.25806935]
[1732904090347,3.34976,3594.1,3593.7,0.25806935]
[1732904090687,3.34976,3594.1,3593.8,0.25806935]
[1732904090845,2.78241,3594.0,3593.9,0.25806935]
[1732904091270,2.78257,3593.8,3593.1,2.78304]
[1732904091477,2.78257,3593.8,3593.2,0.25829457]
[1732904091689,2.78264,3593.7,3593.3,0.25831762]
[1732904091891,2.78241,3594.0,3593.4,0.25831762]
[1732904092051,2.78241,3594.0,3593.5,0.25831762]
[1732904092246,2.78241,3594.0,3593.6,0.25831762]
[1732904092452,2.78249,3593.9,3593.7,0.25831762]
[1732904092671,2.78256,3593.8,3593.1,2.78304]
[1732904092882,2.78256,3593.8,3593.2,3.67583918]
[1732904093089,2.78256,3593.8,3593.3,0.25836918]
[1732904093291,2.78256,3593.8,3593.4,0.25836918]
[1732904093485,2.7827,3593.7,3593.5,0.25836918]
[1732904093651,2.7827,3593.7,3593.6,0.25836918]
[1732904094164,3.906619,3593.7,3593.6,0.25836918]
[1732904095448,3.3501,3593.7,3593.6,0.25836918]
[1732904097792,3.3501,3593.7,3593.6,0.25827376]
[1732904100900,3.35004,3593.7,3593.6,0.25864472]
[1732904103175,3.35004,3593.7,3593.6,0.25898912]
[1732904104885,6.35004,3593.7,3593.6,0.25898912]
[1732904105112,2.78329,3592.9,3592.4,0.7866]
[1732904105325,2.78329,3592.9,3592.5,0.25893873]
[1732904105512,2.78329,3592.9,3592.6,0.25893873]
[1732904105697,2.78312,3593.1,3592.7,0.25893873]
[1732904105913,2.78312,3593.1,3592.8,0.25893873]
[1732904106110,2.78312,3593.1,3592.9,0.25893873]
[1732904106385,2.78318,3593.0,3592.7,0.66126387]
[1732904106585,2.78311,3593.1,3592.8,0.25903967]
[1732904106808,2.78318,3593.0,3592.9,0.25903967]
[1732904109626,2.78318,3593.0,3592.9,0.25902713]
[1732904111317,3.396549,3593.0,3592.9,0.25902713]
[1732904111723,2.78373,3592.3,3591.8,0.8096]
[1732904111924,2.78382,3592.2,3591.8,0.8096]
[1732904112226,2.78375,3592.3,3591.8,3.59368]
[1732904112414,2.78375,3592.3,3591.8,0.8096]
[1732904112953,2.78375,3592.3,3591.9,0.359378]
[1732904113561,2.78358,3592.5,3591.9,0.359378]
[1732904113562,2.78366,3592.4,3591.9,0.359378]
[1732904114015,2.78359,3592.5,3591.9,0.359378]
[1732904114231,2.78365,3592.4,3591.9,0.359378]
[1732904114435,2.78377,3592.3,3591.8,0.8096]
[1732904115156,2.78359,3592.5,3591.8,0.8096]
[1732904115463,3.5674,3592.9,3591.8,0.8096]
[1732904115608,2.78378,3592.3,3591.8,0.8096]
[1732904115815,2.78357,3592.6,3591.8,3.59367]
[1732904116015,2.7836,3592.5,3591.8,3.953037]
[1732904116318,2.7836,3592.5,3591.9,2.78403]
[1732904116514,3.5674,3592.9,3591.8,1.168967]
[1732904116712,2.79025167,3593.5,3591.8,1.168967]
[1732904116713,3.0,3593.3,3592.8,2.78333]
[1732904116957,5.78296,3593.3,3592.7,0.7687]
[1732904117164,2.78303,3593.2,3592.7,0.7687]
[1732904117651,2.78303,3593.2,3592.6,2.78349]
[1732904118157,2.78303,3593.2,3592.4,3.55231]
[1732904118158,2.78303,3593.2,3592.4,0.7687]
[1732904118390,2.78303,3593.2,3592.6,2.78343]
[1732904118862,2.78312,3593.1,3592.5,2.78357]
[1732904119162,5.783,3593.3,3592.6,2.78345]
[1732904119657,5.783,3593.3,3592.8,2.78333]
[1732904120011,0.5674,3593.8,3592.9,0.7798]
[1732904120212,2.78254,3593.9,3593.2,2.78295]
[1732904120473,2.78262,3593.8,3593.2,2.78295]
[1732904121462,2.78262,3593.8,3593.2,2.78298]
[1732904122071,2.78251,3593.9,3593.3,2.78293]
[1732904123457,2.78258,3593.8,3593.1,2.78305]
[1732904123768,2.78251,3593.9,3593.3,2.78295]
[1732904124443,2.78275,3593.6,3593.1,0.6902697]
[1732904124649,2.78285,3593.5,3592.9,3.56304]
[1732904124818,5.56554,3593.6,3592.9,3.56305]
[1732904125019,2.78287,3593.5,3592.9,3.56305]
[1732904125451,2.7829,3593.4,3592.9,0.7798]
[1732904125958,2.7829,3593.4,3592.9,3.56305]
[1732904126272,2.7829,3593.4,3592.9,3.56306]
[1732904126424,2.78295,3593.3,3592.5,0.8107]
[1732904126759,2.78321,3593.0,3592.2,3.59446]
[1732904126961,2.78334,3592.8,3592.2,3.59446]
[1732904127623,0.5674,3593.1,3592.0,2.78394]
[1732904127859,2.78354,3592.6,3592.0,2.78394]
[1732904128059,2.78345,3592.7,3592.0,3.417672]
[1732904128234,2.78345,3592.7,3592.1,2.78386]
[1732904128864,2.78345,3592.7,3592.0,3.417672]
[1732904128865,2.78345,3592.7,3592.2,2.7838]
[1732904129437,2.78329,3592.9,3592.3,2.78371]
[1732904129847,2.78337,3592.8,3592.1,2.78383]
[1732904130174,2.78335,3592.8,3592.2,2.78374]
[1732904130333,2.78329,3592.9,3592.2,2.78374]
[1732904130880,5.7832,3593.0,3592.5,0.8187]
[1732904131177,2.78329,3592.9,3592.5,0.8187]
[1732904131729,2.78338,3592.8,3592.5,0.8187]
[1732904131962,2.78338,3592.8,3592.2,2.78374]
[1732904132171,2.78338,3592.8,3592.2,3.55884]
[1732904133075,2.78345,3592.7,3592.2,0.7751]
[1732904133436,2.78348,3592.7,3592.2,0.7751]
[1732904133838,2.78338,3592.8,3592.2,0.7751]
[1732904134036,2.78355,3592.6,3592.2,0.7751]
[1732904134250,3.0,3593.0,3592.2,0.7751]
[1732904134471,2.78343,3592.7,3592.2,0.7751]
[1732904134661,2.78351,3592.6,3592.2,0.7751]
[1732904135402,2.78371,3592.4,3591.8,0.8164]
[1732904135690,2.78375,3592.3,3591.8,0.8164]
[1732904136586,2.7836,3592.5,3591.8,0.8164]
[1732904136784,3.35092,3592.6,3591.9,3.144085]
[1732904137082,2.78366,3592.4,3591.9,3.144085]
[1732904137284,2.78364,3592.5,3591.9,3.144085]
[1732904137452,2.78366,3592.4,3591.9,3.144085]
[1732904138083,2.78364,3592.5,3591.9,3.144085]
[1732904139674,2.78365,3592.4,3591.9,3.144085]
[1732904141360,2.78357,3592.5,3592.0,2.78395]
[1732904141905,0.55474321,3592.6,3592.2,2.7838]
[1732904142268,3.33825321,3592.6,3592.1,2.78388]
[1732904142704,0.5674,3593.2,3592.6,2.78343]
[1732904142904,0.56978294,3593.6,3592.9,2.78321]
[1732904143114,0.56978294,3593.6,3593.1,2.78309]
[1732904143330,2.78269,3593.7,3593.0,2.78313]
[1732904143475,2.78269,3593.7,3593.1,2.78309]
[1732904143827,2.78268,3593.7,3593.2,0.02782881]
[1732904143975,2.78268,3593.7,3593.1,3.6025]
[1732904144475,2.78268,3593.7,3593.2,2.78301]
[1732904145395,2.78272,3593.6,3593.2,0.54394994]
[1732904145715,2.78272,3593.6,3593.1,0.8194]
[1732904145918,3.35008,3593.7,3593.1,0.8194]
[1732904146075,2.78274,3593.6,3593.1,0.8194]
[1732904146410,2.78274,3593.6,3592.8,3.54836]
[1732904146718,2.78292,3593.4,3592.8,0.7651]
[1732904147011,0.5674,3593.7,3592.4,3.54874]
[1732904147012,2.78324,3593.0,3592.4,3.54874]
[1732904147211,2.78324,3593.0,3592.5,2.78356]
[1732904147426,2.78294,3593.4,3592.7,2.78339]
[1732904147632,2.78301,3593.3,3592.6,2.78349]
[1732904147920,2.78304,3593.2,3592.6,2.78349]
[1732904148416,2.78287,3593.4,3592.6,2.78349]
[1732904148619,3.5674,3593.7,3593.0,0.7655]
[1732904148915,3.0,3593.7,3593.1,2.78306]
[1732904149078,5.78267,3593.7,3593.1,2.78306]
[1732904149287,2.78289,3593.4,3593.0,0.7655]
[1732904149505,5.5655,3593.6,3593.0,0.7655]
[1732904149737,2.7828,3593.5,3593.0,0.7655]
[1732904150535,0.54650864,3593.4,3593.0,0.7655]
[1732904150684,2.78274,3593.6,3593.0,3.54863]
[1732904151313,2.78274,3593.6,3593.1,2.78308]
[1732904151516,0.14503,3591.8,3591.2,2.78455]
[1732904151728,0.14503,3591.8,3591.7,0.8067]
[1732904152043,0.14503,3591.8,3591.7,3.61872846]
[1732904152394,0.14503,3591.8,3591.7,3.59089]
[1732904152839,0.14503,3591.8,3591.7,4.50742517]
[1732904153137,0.14503,3591.8,3591.7,5.05742517]
[1732904153306,0.14503,3591.8,3591.7,5.08525916]
[1732904153488,0.14503,3591.8,3591.7,5.05742517]
[1732904153692,0.14503,3591.8,3591.7,8.08172517]
[1732904154035,0.5674,3593.7,3592.6,2.78344]
[1732904154036,2.78269,3593.7,3592.6,2.78344]
[1732904154338,2.78269,3593.7,3592.6,3.423248]
[1732904154533,2.78269,3593.7,3592.7,2.78339]
[1732904154773,2.7825,3593.9,3592.8,3.61434]
[1732904155029,2.78226,3594.2,3593.2,2.78303]
[1732904155191,2.78235,3594.1,3593.3,0.8229]
[1732904155532,2.78235,3594.1,3593.4,0.02782524]
[1732904155881,2.78218,3594.3,3593.3,3.60582]
[1732904156130,3.17752721,3594.4,3593.3,3.60582]
[1732904156335,0.39536721,3594.4,3593.3,3.60582]
[1732904156831,2.78226,3594.2,3593.3,3.60582]
[1732904157332,2.78226,3594.2,3593.3,0.8229]
[1732904157519,2.78226,3594.2,3593.4,0.360592]
[1732904157719,2.79025167,3593.8,3592.9,0.7768]
[1732904157956,2.78279,3593.6,3592.9,0.7768]
[1732904158237,2.78281,3593.5,3592.9,0.7768]
[1732904158590,3.599,3594.1,3592.9,0.7768]
[1732904158792,2.79025167,3593.8,3592.5,0.7768]
[1732904158998,2.78318,3593.1,3592.5,0.7768]
[1732904159597,2.78324,3593.0,3592.5,0.7768]
[1732904160217,2.78327,3592.9,3592.5,0.7768]
[1732904161344,2.78349,3592.6,3592.5,0.7768]
[1732904161547,0.278349,3592.6,3592.1,0.7868]
[1732904161764,2.7838,3592.2,3592.1,0.7868]
[1732904161906,2.78397,3592.0,3591.4,0.7868]
[1732904162112,2.78387,3592.2,3591.4,0.7868]
[1732904162414,2.78387,3592.2,3591.4,3.57116]
[1732904162746,2.78366,3592.4,3591.5,2.78433]
[1732904162903,2.78342,3592.7,3591.6,0.357113]
[1732904163112,2.7839,3592.1,3591.6,0.357113]
[1732904163350,0.28526233,3594.2,3593.7,0.8024]
[1732904163351,2.78228,3594.2,3593.7,0.8024]
[1732904163573,4.30344387,3593.7,3593.2,0.55]
[1732904163845,2.53999958,3593.6,3592.2,0.55]
[1732904164046,2.78245,3594.0,3592.9,2.78325]
[1732904164409,0.57066661,3594.3,3593.1,0.7711]
[1732904164648,3.58244,3593.7,3591.9,0.7711]
[1732904164843,3.58244,3593.7,3592.7,0.7711]
[1732904165050,2.78273,3593.6,3592.7,0.7711]
[1732904165229,1.71531917,3593.7,3592.7,0.7711]
[1732904165553,4.49796917,3593.7,3592.7,0.7711]
[1732904166140,1.71531917,3593.7,3592.7,0.7711]
[1732904166305,2.78308,3593.2,3591.9,6.53404]
[1732904166509,2.78308,3593.2,3592.1,2.78382]
[1732904167306,0.7998,3593.7,3591.9,0.75]
[1732904167307,2.78298,3593.3,3591.9,0.75]
[1732904167634,2.78298,3593.3,3592.3,2.78372]
[1732904168553,5.78285,3593.5,3592.4,0.02783379]
[1732904168782,3.441145,3593.4,3592.3,2.78372]
[1732904169127,0.658265,3593.4,3592.6,2.78349]
[1732904169313,0.658265,3593.4,3592.4,2.81143331]
[1732904169513,0.658265,3593.4,3592.4,2.7836]
[1732904169816,3.441175,3593.4,3592.4,2.7836]
[1732904170246,3.441175,3593.4,3592.5,0.52023117]
[1732904170467,3.441175,3593.4,3592.4,2.7836]
[1732904170744,3.7053625,3593.3,3592.3,2.7837]
[1732904170951,3.7053625,3593.3,3592.0,2.79025167]
[1732904170952,0.9223925,3593.3,3592.0,2.79025167]
[1732904171134,3.7998,3593.7,3592.7,0.7791]
[1732904171541,2.78329,3592.9,3592.3,0.7791]
[1732904171758,0.7836,3593.4,3591.7,0.7791]
[1732904171958,3.56717,3592.6,3591.8,0.67653313]
[1732904172161,0.7836,3592.6,3591.9,0.67653313]
[1732904172380,0.7836,3592.6,3592.0,0.67653313]
[1732904172673,0.7836,3592.6,3592.1,0.67653313]
[1732904172888,0.7836,3592.6,3592.2,0.67653313]
[1732904173071,0.7836,3592.6,3592.3,0.67649374]
[1732904173239,0.7836,3592.6,3592.4,0.2601899]
[1732904173439,0.7836,3592.6,3592.5,0.2601899]
[1732904174030,3.0,3592.8,3592.5,0.2601899]
[1732904174170,2.78349,3592.6,3591.7,0.7791]
[1732904174338,2.78349,3592.6,3591.8,0.67628317]
[1732904174767,2.78349,3592.6,3591.9,0.67628317]
[1732904174972,3.0,3592.7,3591.9,0.67628317]
[1732904175139,0.56895129,3592.9,3591.9,0.67628317]
[1732904175336,0.56895129,3592.9,3591.9,3.46031317]
[1732904175541,3.0,3592.7,3591.9,3.46031317]
[1732904175782,3.56895129,3592.9,3592.1,2.78388]
[1732904175937,2.78335,3592.8,3591.9,2.78403]
[1732904176143,2.78342,3592.7,3591.8,2.78407]
[1732904176450,2.78363,3592.5,3591.7,0.7791]
[1732904176836,2.78366,3592.4,3591.7,0.7791]
[1732904177037,0.76,3592.4,3591.7,0.7791]
[1732904177268,0.76,3592.4,3591.8,2.78409]
[1732904177940,3.0,3592.6,3591.8,2.78409]
[1732904178166,0.653482,3592.5,3592.0,2.7839]
[1732904178383,0.653482,3592.5,3591.8,2.78411]
[1732904178582,0.653482,3592.5,3591.9,2.78401]
[1732904179043,0.653482,3592.5,3591.7,0.7791]
[1732904179267,2.7838,3592.3,3591.4,0.7902]
[1732904179468,2.7838,3592.3,3591.6,2.78427]
[1732904179707,3.0,3592.4,3591.8,2.78408]
[1732904180249,3.53485,3592.7,3591.8,2.78408]
[1732904180250,5.7835,3592.6,3591.9,2.78403]
[1732904180712,5.78371,3592.4,3592.0,0.25989593]
[1732904180867,3.93187,3592.4,3591.4,0.7902]
[1732904181069,3.93187,3592.4,3591.8,2.78411]
[1732904182192,5.78351,3592.6,3592.0,2.78391]
[1732904182374,5.78351,3592.6,3591.8,2.78406]
[1732904182581,5.78351,3592.6,3592.0,2.78395]
[1732904183479,0.7514,3592.7,3592.2,2.78373]
[1732904183684,0.56895129,3592.9,3592.4,2.7836]
[1732904183894,0.7781,3593.0,3592.6,2.78348]
[1732904184096,0.7518,3593.3,3592.6,2.78342]
[1732904184303,0.54815429,3593.2,3592.7,2.7834]
[1732904184915,0.54815429,3593.2,3592.1,3.58113]
[1732904185081,3.33119429,3593.2,3592.5,2.7835]
[1732904185448,3.33119429,3593.2,3592.6,2.78348]
[1732904186980,0.54815429,3593.2,3592.7,2.78341]
[1732904187235,0.54815429,3593.2,3592.6,2.78348]
[1732904187236,6.33118429,3593.2,3592.6,2.78348]
[1732904187530,0.54815429,3593.2,3592.2,2.78378]
[1732904187720,0.5987,3592.1,3590.4,0.278]
[1732904187906,3.0,3592.2,3590.7,2.79025167]
[1732904188216,0.55910983,3592.6,3590.9,2.78481]
[1732904188373,2.78342,3592.7,3591.3,0.8178]
[1732904188580,2.78378,3592.3,3591.3,3.6023]
[1732904188771,2.78359,3592.5,3591.3,0.8178]
[1732904189007,2.78359,3592.5,3591.4,2.78436]
[1732904189326,2.78359,3592.5,3591.5,2.78434]
[1732904189526,2.78359,3592.5,3591.6,2.78426]
[1732904189678,0.5987,3592.8,3591.7,3.062576]
[1732904189879,2.78351,3592.6,3591.7,3.062576]
[1732904190082,2.78351,3592.6,3591.7,0.278426]
[1732904190288,0.5987,3592.8,3591.4,0.55]
[1732904190562,0.5987,3592.8,3591.5,0.0278372]
[1732904190820,2.7832,3593.0,3592.0,2.78392]
[1732904190978,2.7832,3593.0,3592.1,0.02783457]
[1732904191179,2.7832,3593.0,3592.0,2.78392]
[1732904191373,2.78332,3592.9,3592.1,0.556803]
[1732904192623,2.78332,3592.9,3592.2,0.02783458]
[1732904192929,2.78337,3592.8,3592.1,0.556803]
[1732904193110,2.78337,3592.8,3592.0,2.78392]
[1732904193621,2.78312,3593.1,3592.1,2.8117046]
[1732904193831,2.78327,3592.9,3592.1,2.8117046]
[1732904194325,2.7834,3592.8,3591.8,2.78404]
[1732904194524,2.7834,3592.8,3591.9,2.78397]
[1732904194729,2.7834,3592.8,3592.0,0.55958446]
[1732904194929,2.7834,3592.8,3592.0,3.34353446]
[1732904195227,2.78354,3592.6,3592.0,0.55958446]
[1732904195436,2.78354,3592.6,3591.8,2.78404]
[1732904195927,2.7834,3592.8,3591.8,2.78404]
[1732904195928,1.0821593,3595.2,3592.7,3.8192]
[1732904196091,0.1,3595.8,3592.8,0.55]
[1732904196092,0.8211,3594.2,3592.8,0.55]
[1732904196292,2.78285,3593.5,3592.7,0.8192]
[1732904196501,1.37790253,3594.2,3592.7,1.179476]
[1732904196502,2.7825,3593.9,3592.7,1.179476]
[1732904196724,1.37790253,3594.2,3592.7,3.60261]
[1732904196928,1.37790253,3594.2,3592.8,2.78332]
[1732904197103,2.7826,3593.8,3592.8,2.78332]
[1732904197301,2.78242,3594.0,3592.8,0.55]
[1732904197489,2.78243,3594.0,3593.0,2.78312]
[1732904197693,2.78243,3594.0,3593.0,3.476683]
[1732904198092,2.78257,3593.8,3593.0,0.693563]
[1732904198405,3.0,3593.9,3592.9,2.78323]
[1732904198726,3.0,3593.9,3592.8,0.55]
[1732904198936,2.78269,3593.7,3592.7,3.60261]
[1732904199287,5.78243,3594.0,3592.8,2.78331]
[1732904199618,2.78253,3593.9,3593.0,2.78316]
[1732904199829,3.69468925,3593.9,3593.0,2.78316]
[1732904200352,0.91215925,3593.9,3592.9,2.78323]
[1732904200635,0.91215925,3593.9,3592.8,2.78328]
[1732904200636,2.78263,3593.8,3592.8,2.78328]
[1732904200932,0.91215925,3593.9,3592.8,2.78328]
[1732904200933,2.78266,3593.7,3592.8,2.78328]
[1732904201669,2.78273,3593.6,3592.8,2.78328]
[1732904201792,2.78233,3594.1,3592.7,0.8192]
[1732904201990,2.78295,3593.4,3592.4,2.78364]
[1732904202196,2.78297,3593.3,3592.4,2.78364]
[1732904202818,2.78297,3593.3,3592.5,2.78355]
[1732904203141,2.78297,3593.3,3592.3,2.78372]
[1732904203321,3.0,3593.5,3592.6,2.78349]
[1732904203505,0.653312,3593.4,3592.6,2.78349]
[1732904203690,0.653312,3593.4,3592.4,2.78364]
[1732904203922,2.78311,3593.1,3592.4,2.78364]
[1732904206104,2.78311,3593.1,3592.2,2.7838]
[1732904207027,2.78302,3593.3,3592.0,2.78393]
[1732904207194,5.78293,3593.4,3592.1,0.657353]
[1732904207395,5.78293,3593.4,3592.6,2.78342]
[1732904207597,2.78304,3593.2,3592.1,0.68518588]
[1732904207832,2.78311,3593.1,3592.5,2.78352]
[1732904208040,2.78311,3593.1,3592.3,2.78371]
[1732904208362,0.7973,3592.8,3591.9,0.7896]
[1732904208532,0.7973,3592.8,3591.2,3.53707875]
[1732904208533,2.78379,3592.3,3591.6,2.78427]
[1732904208740,2.78381,3592.2,3591.5,0.8087]
[1732904209045,2.78403,3592.0,3591.3,2.7845]
[1732904209232,2.78372,3592.4,3591.2,0.7827]
[1732904209404,2.78374,3592.3,3591.7,2.78419]
[1732904209795,3.0,3592.6,3591.7,2.78419]
[1732904210035,0.958072,3592.5,3591.7,2.78419]
[1732904210530,3.0,3592.6,3591.7,2.78419]
[1732904210730,0.54509905,3592.6,3591.6,2.78425]
[1732904211243,2.78358,3592.5,3591.4,2.78442]
[1732904211403,3.0,3592.4,3591.4,2.78442]
[1732904211848,3.0,3592.4,3591.5,2.78434]
[1732904212131,2.78366,3592.4,3591.4,2.78436]
[1732904212538,3.0,3592.5,3591.5,2.7843]
[1732904212698,3.54509905,3592.6,3591.6,2.78421]
[1732904213031,0.54509905,3592.6,3591.9,2.78403]
[1732904213919,0.7973,3592.8,3591.9,2.78403]
[1732904214431,3.0,3592.7,3591.9,2.78403]
[1732904214939,0.7504,3593.3,3592.4,2.78359]
[1732904215095,0.56164252,3593.2,3592.5,2.78355]
[1732904215296,0.7504,3593.3,3592.3,2.78371]
[1732904215495,0.7504,3593.3,3592.6,2.78349]
[1732904215692,2.78276,3593.6,3592.8,2.78332]
[1732904215923,0.278276,3593.5,3592.6,2.78349]
[1732904216091,3.061076,3593.5,3592.7,2.78341]
[1732904216629,0.278276,3593.5,3592.7,2.78341]
[1732904216798,3.53597,3593.7,3592.9,2.78325]
[1732904217047,0.54537756,3593.5,3592.7,2.78341]
[1732904217977,0.54537756,3593.5,3592.6,2.78349]
[1732904218186,2.78306,3593.2,3592.4,2.78362]
[1732904219241,2.78306,3593.2,3592.5,2.78356]
[1732904219760,2.78312,3593.1,3592.3,2.78371]
[1732904219960,2.78308,3593.2,3592.4,2.7836]
[1732904220270,0.7684,3593.2,3592.0,0.7646]
[1732904220480,0.7684,3593.2,3591.1,3.53743514]
[1732904220481,2.78337,3592.8,3591.8,2.7841]
[1732904220709,2.78344,3592.7,3591.9,2.78403]
[1732904220912,2.78344,3592.7,3592.0,2.78395]
[1732904221096,2.78344,3592.7,3591.9,3.419812]
[1732904221698,2.78351,3592.6,3591.9,3.419812]
[1732904224036,2.78365,3592.4,3591.9,0.635832]
[1732904224185,3.0,3593.0,3591.6,0.7901]
[1732904224528,0.7953,3592.3,3591.2,0.7857]
[1732904224745,2.78402,3592.0,3591.3,2.7845]
[1732904224895,2.78399,3592.0,3591.3,2.7845]
[1732904225089,2.78405,3591.9,3591.3,2.7845]
[1732904225287,2.78405,3591.9,3591.3,3.419983]
[1732904225497,2.78402,3592.0,3591.3,3.419983]
[1732904225724,2.78412,3591.8,3591.3,0.635483]
[1732904226112,2.78402,3592.0,3591.3,0.635483]
[1732904226432,2.78379,3592.3,3591.8,2.78411]
[1732904227535,3.0,3592.4,3591.3,0.635483]
[1732904227719,3.60394,3592.7,3592.0,0.7538]
[1732904228014,2.78358,3592.5,3592.0,0.7538]
[1732904228585,3.60394,3592.7,3591.9,2.78401]
[1732904228586,2.78366,3592.4,3591.9,2.78401]
[1732904229640,2.78355,3592.6,3591.9,2.78401]
[1732904229947,2.78362,3592.5,3591.9,2.78401]
[1732904230154,2.78355,3592.6,3591.9,2.78401]
[1732904230351,0.41610738,3592.5,3591.8,0.01961542]
[1732904230551,2.78388,3592.2,3591.8,0.01961542]
[1732904230859,2.78352,3592.6,3591.9,2.78402]
[1732904231060,2.78366,3592.4,3591.9,0.52028439]
[1732904231353,2.78375,3592.3,3591.8,0.01961542]
[1732904231525,2.78399,3592.0,3591.8,0.01961542]
[1732904232432,2.78404,3591.9,3591.8,0.01961542]
[1732904232945,2.78404,3591.9,3591.8,0.01961542]
[1732904233458,2.7839,3592.1,3591.8,0.01961542]
[1732904233644,2.78397,3592.0,3591.8,0.01961542]
[1732904233821,2.78404,3591.9,3591.8,0.01961542]
[1732904234223,4.097434,3591.9,3591.8,0.01961542]
[1732904235903,7.097434,3591.9,3591.8,0.01961542]
[1732904237522,7.64087017,3591.9,3591.8,0.01961542]
[1732904238168,5.78404,3591.9,3591.8,0.01961542]
[1732904241987,3.0,3592.0,3591.8,0.01961542]
[1732904242927,5.78404,3591.9,3591.8,0.01961542]
[1732904243729,6.58384,3591.9,3591.8,0.01961542]
[1732904243885,11.85600461,3591.9,3591.8,0.01961542]
[1732904250544,12.40600461,3591.9,3591.8,0.01961542]
[1732904250831,12.54872184,3591.9,3591.8,0.01961542]
[1732904251496,12.54872184,3591.9,3591.8,5.42e-06]
[1732904252741,15.3439582,3591.9,3591.8,5.42e-06]
[1732904253931,3.0,3591.8,3590.3,0.7577]
[1732904254135,3.0,3590.7,3590.3,0.7577]
[1732904254438,5.78502,3590.7,3590.3,0.7577]
[1732904254673,2.7849,3590.8,3590.3,0.7577]
[1732904254977,5.78497,3590.7,3590.3,0.7577]
[1732904256053,2.7851,3590.6,3590.3,0.7577]
[1732904256769,3.0,3590.7,3589.9,0.8233]
[1732904256952,2.78543,3590.1,3590.0,0.25967089]
[1732904257156,2.78557,3590.0,3589.5,0.8233]
[1732904257474,2.78559,3589.9,3589.6,0.25962981]
[1732904257686,2.78559,3589.9,3589.5,0.8233]
[1732904258275,2.78559,3589.9,3589.6,0.25960005]
[1732904258448,2.78559,3589.9,3589.5,0.8233]
[1732904258623,2.78559,3589.9,3589.6,0.25959977]
[1732904258838,2.78559,3589.9,3589.5,0.8233]
[1732904259053,2.78559,3589.9,3589.6,0.25959936]
[1732904259242,2.78559,3589.9,3589.5,0.8233]
[1732904260336,0.7971,3590.4,3589.7,2.78571]
[1732904260537,3.34701099,3590.1,3589.8,0.25961219]
[1732904260738,3.34701099,3590.1,3589.5,1.184233]
[1732904260739,3.34701099,3590.1,3589.5,0.8233]